{"text_format":"1","workbook":"xlsx","n_sheets":2,"sheets":["ŞABLON","BİST "],"not_rendered":{"charts":0,"images":0,"macros":1,"external_links":0,"defined_names":0,"comments":0,"pivot_tables":0},"unopened":[],"bounds":{"document_bytes":16777216,"sheet_cells":100000,"rows_first":2000,"rows_last":500,"rows_between":2000,"halvings":0,"cell_chars":16384,"cell_head_chars":4096},"cells_cut":0,"cells_raw":0,"read":"whole","date_system":"1900"}

{"sheet":"ŞABLON","index":0,"n_rows":128,"n_cols":12,"rows_kept":128,"cut":false,"hidden":false,"merged":[[1,1,2,1],[59,1,59,2],[60,1,60,2],[114,1,114,4],[116,1,117,2],[71,1,72,1],[73,1,73,2],[74,1,74,2],[74,3,74,4],[75,1,75,2],[75,3,75,4],[79,1,79,3],[86,1,88,1],[86,2,87,2],[86,3,87,3],[86,4,87,4],[86,5,87,5],[88,3,88,4],[103,11,106,11],[107,7,112,8],[108,11,111,11]]}
[]
[null,"FAALİYET TÜRLERİ İTİBARİYLE HASILATLAR VE TOPLAM İÇİNDEKİ ORANLARI",{"$f":"IFERROR(C4/C4,0)","v":0},{"$f":"IFERROR(D4/C4,0)","v":0},{"$f":"IFERROR(E4/C4,0)","v":0},{"$f":"IFERROR(F4/C4,0)","v":0}]
[null,null,"Toplam Hasılat","İhracat faaliyeti","İmalat faaliyeti","Diğer faaliyetler"]
[null,"A-BRÜT SATIŞLAR (60)",{"$f":"D4+E4+F4","v":0},{"$f":"SUM(D5:D7)","v":0},{"$f":"SUM(E5:E7)","v":0},0]
[null,"1-Yurtiçi Satışlar (600)",{"$f":"D5+E5+F5","v":0}]
[null,"2-Yurtdışı Satışlar (601)",{"$f":"D6+E6+F6","v":0}]
[null,"3-Diğer Gelirler (602)",{"$f":"D7+E7+F7","v":0}]
[null,"B-SATIŞ İNDİRİMLERİ(-) (61)",{"$f":"SUM(C9:C11)","v":0},{"$f":"SUM(D9:D11)","v":0},{"$f":"SUM(E9:E11)","v":0},0]
[null,"1-Satıştan İadeler (-) (610)",{"$f":"SUM(D9:F9)","v":0}]
[null,"2- Satış İskontoları (-) (611)",{"$f":"SUM(D10:F10)","v":0}]
[null,"3-Diğer İndirimler (-) (612)",0]
[null,"C-NET SATIŞLAR",{"$f":"C4-C8","v":0},{"$f":"D4-D8","v":0},{"$f":"E4-E8","v":0},0]
[null,"D-SATIŞLARIN MALİYETİ (-) (62)",{"$f":"SUM(C14:C17)","v":0},{"$f":"SUM(D14:D17)","v":0},{"$f":"SUM(E14:E17)","v":0},{"$f":"SUM(F14:F17)","v":0}]
[null,"1-Satılan Mamuller Maliyeti ( 620)",{"$f":"SUM(D14:F14)","v":0}]
[null,"2-Satılan Ticari Mal Maliyeti (621)",{"$f":"SUM(D15:F15)","v":0}]
[null,"3-Satılan Hizmet Maliyeti (622)",0]
[null,"4-Diğer Satışların Maliyeti (623)",{"$f":"SUM(D17:F17)","v":0}]
[null,"BRÜT SATIŞ KARI / ZARARI",{"$f":"C12-C13","v":0},{"$f":"D12-D13","v":0},{"$f":"E12-E13","v":0},0]
[null,"E-FAALİYET GİDERLERİ (-) (63)",{"$f":"SUM(C20:C24)","v":0},{"$f":"SUM(D20:D24)","v":0},{"$f":"SUM(E20:E24)","v":0},0]
[null,"1-Araştırma ve Geliştirme Giderleri(-) (630)",{"$f":"SUM(D20:F20)","v":0}]
[null,"2-Pazarlama, Satış ve Dağıtım Giderleri(-) (631)",{"$f":"SUM(D21:F21)","v":0}]
[null,"3-Genel Yönetim Giderleri(-) (632)",{"$f":"SUM(D22:F22)","v":0}]
[null,"MÜŞTEREK GENEL GİDERLER (DAĞITIM-HASILAT PAYINA GÖRE)",null,{"$f":"C23*D2","v":0},{"$f":"C23*E2","v":0},{"$f":"C23*F2","v":0}]
[null,"MÜŞTEREK GENEL GİDER GİBİ DAĞITIMA TABİ TUTULACAK AMORTİSMAN GİDERLERİ  (DAĞITIM-HASILAT PAYINA GÖRE)",null,{"$f":"C24*D2","v":0},{"$f":"C24*E2","v":0},{"$f":"C24*F2","v":0}]
[null,"FAALİYET KARI / ZARARI ",{"$f":"C18-C19","v":0},{"$f":"D18-D19","v":0},{"$f":"E18-E19","v":0},0]
[null,"F-DİĞER FAALİYETLERDEN OLAĞAN GELİR VE KARLAR (64)",{"$f":"SUM(C27:C35)","v":0},{"$f":"SUM(D27:D35)","v":0},{"$f":"SUM(E27:E35)","v":0},{"$f":"SUM(F27:F35)","v":0}]
[null,"         1- İŞTİRAKLERDEN TEMETTÜ GELİRLERİ (640)",{"$f":"SUM(D27:F27)","v":0}]
[null,"         2- BAĞLI ORTAKLIKLARDAN TEMETTÜ GELİRLERİ (641)",{"$f":"SUM(D28:F28)","v":0}]
[null,"         3- FAİZ GELİRLERİ (642) (ihracat ve imalat kaynaklı alacağın tahsiline kadar olan süreçte oluşan)",0]
[null,"         4- KOMİSYON GELİRLERİ (643)",0]
[null,"         5- KONUSU OLMAYAN KARŞILIKLAR (644)",0]
[null,"         6- MENKUL KIYMET SATIŞ KARLARI (645)",0]
[null,"         7- KAMBİYO KARLARI (646) (ihracat ve imalat kaynaklı alacağın tahsiline kadar olan süreçte oluşan)",0]
[null,"         8- REESKONT FAİZ GELİRLERİ (647)",0]
[null,"         9- FAALİYETLE İLGİLİ DİĞER GELİR VE KARLAR (649)",0]
[null,"ARA TOPLAM",{"$f":"C25+C26","v":0},{"$f":"D25+D26","v":0},{"$f":"E25+E26","v":0},{"$f":"F25+F26","v":0}]
[null,"G-DİĞER FAALİYETLERDEN OLAĞAN GİDER VE ZARARLAR(-) (65)",{"$f":"SUM(C38:C43)","v":0},{"$f":"SUM(D38:D43)","v":0},{"$f":"SUM(E38:E43)","v":0},0]
[null,"         1- KOMİSYON GİDERLERİ (653)",{"$f":"SUM(D38:F38)","v":0}]
[null,"         2- KARŞILIK GİDERLERİ (654)",{"$f":"SUM(D39:F39)","v":0}]
[null,"         3- MENKUL KIYMET SATIŞ ZARARLARI (655)",0]
[null,"         4- KAMBİYO ZARARLARI (656) (ihracat ve imalat kaynaklı alacağın tahsiline kadar olan süreçte oluşan)",0]
[null,"         5- REESKONT FAİZ GİDERLERİ (657)",0]
[null,"         6- DİĞER OLAĞAN GİDER VE ZARARLAR (659)",{"$f":"SUM(D43:F43)","v":0}]
[null,"ARA TOPLAM",{"$f":"C36-C37","v":0},{"$f":"D36-D37","v":0},{"$f":"E36-E37","v":0},0]
[null,"H-FİNANSMAN GİDERLERİ(-) (66)",{"$f":"SUM(C46:C49)","v":0},{"$f":"SUM(D46:D49)","v":0},{"$f":"SUM(E46:E49)","v":0},{"$f":"SUM(F46:F49)","v":0}]
[null,"         1- KISA VADELİ BORÇLANMA GİDERLERİ (-)",{"$f":"SUM(D46:F46)","v":0}]
[null,"         2- UZUN VADELİ BORÇLANMA GİDERLERİ (-)",{"$f":"SUM(D47:F47)","v":0}]
[null,"         1- KISA VADELİ BORÇLANMA GİDERLERİ (-) (DAĞITIM)",null,{"$f":"C48*D2","v":0},{"$f":"C48*E2","v":0},{"$f":"C48*F2","v":0}]
[null,"         2- UZUN VADELİ BORÇLANMA GİDERLERİ (-) (DAĞITIM)",null,{"$f":"C49*D2","v":0},{"$f":"C49*E2","v":0},{"$f":"C49*F2","v":0}]
[null,"ARA TOPLAM",{"$f":"C44-C45","v":0},{"$f":"D44-D45","v":0},{"$f":"E44-E45","v":0},{"$f":"F44-F45","v":0}]
[null,"I-OLAĞANDIŞI GELİR VE KÂRLAR (67)",{"$f":"SUM(D51:F51)","v":0},{"$f":"SUM(D52:D53)","v":0},{"$f":"SUM(E52:E53)","v":0},{"$f":"SUM(F52:F53)","v":0}]
[null,"1- ÖNCEKİ DÖNEM GELİR VE KARLARI (671)",{"$f":"SUM(D52:F52)","v":0}]
[null,"2-DİĞER OLAĞAN DIŞI GELİR VE KARLAR (679)",{"$f":"SUM(D53:F53)","v":0}]
[null,"ARA TOPLAM",{"$f":"SUM(D54:F54)","v":0},{"$f":"D50+D51","v":0},{"$f":"E50+E51","v":0},0]
[null,"J-OLAĞANDIŞI GİDER VE ZARARLAR(-) (68)",{"$f":"SUM(C56:C58)","v":0},{"$f":"SUM(D56:D58)","v":0},{"$f":"SUM(E56:E58)","v":0},0]
[null,"1-Çalışmayan Kısım Gider ve Zararları(-) (680)",{"$f":"SUM(D56:F56)","v":0}]
[null,"2-Önceki Dönem Gider ve Zararları(-) (681)",{"$f":"SUM(D57:F57)","v":0}]
[null,"3-Diğer Olağan Dışı Gider ve Zararlar(-) (689)",0]
[null,"DÖNEM KÂRI VEYA ZARARI \n(TİCARİ BİLANÇO KARI ZARARI )",{"$f":"C54-C55","v":0},{"$f":"D54-D55","v":0},{"$f":"E54-E55","v":0},0]
[null,"İHRACAT, İMALAT VE DİĞER FAALİYETLERDEN ELDE EDİLEN KAZANCIN TOPLAM TİCARİ KAZANÇ İÇİNDEKİ PAYLARI \n\n(İHRACAT VE İMALAT FAALİYETİ KAZANCININ TOPLAMININ TİCARİ BİLANÇO KARINDAN FAZLA OLDUĞU DURUMDA BU FAALİYETLERİN TOPLAM İÇİNDEKİ PAYI % 100 OLARAK KABUL EDİLMİŞ VE İHRACAT VE İMALATIN KAZANCINA GÖRE PAYLARI HESAPLANMIŞTIR.",null,{"$f":"IFERROR(IF(D59+E59>C59,(D59/(D59+E59)),D59/C59),0)","v":0},{"$f":"IFERROR(IF(D59+E59>C59,(E59/(D59+E59)),E59/C59),0)","v":0},{"$f":"IF(F59<=0,0,F59/C59)","v":0}]
[null,null,null,{"$f":"IF(D60<=0,0,IF(D60>1,1,D60))","v":0},{"$f":"IF(E60<=0,0,IF(E60>1,1,E60))","v":0},{"$f":"IF(F60<=0,0,IF(F60>1,1,F60))","v":0}]
[]
[null,"KKEG +"]
[null," KABUL EDİLMEYEN GELİRLER -"]
[null,"ZARAR OLSA DAHİ İNDİRİLECEK İSTİSNALAR -",{"$f":"C66+C67+C68","v":0}]
[null,"Hizmet İhracatı Faaliyetinden (KVK 10-1/ğ) Elde Edilen Kazançlardan İstisna Edilenlerin Toplamı"]
[null,"İmalat Faaliyetinden Elde Edilen Kazançlardan İstisna Edilenlerin Toplamı"]
[null,"Diğer Faaliyetlerden Elde Edilen Kazançlardan İstisna Edilenlerin Toplamı"]
[null,"GEÇMİŞ YIL ZARARLARI -"]
[null,"İNDİRİMLER -",null,"AZAMİ YAZILABİLECEK İNDİRİMLER TUTARI",{"$f":"C59+C63-C64-C65-C69","v":0}]
[]
[null,"1 PUAN İNDİRİM UYGULANACAK TUTARIN HESABINDA İSTİSNA KAZANÇLAR DÜŞÜLDÜKTEN SONRA BULUNAN TİCARİ KAZANÇ TUTARI İLE  İHRACAT,İMALAT VE DİĞER KAZANÇLARIN TUTARI","TİCARİ KAZANÇ TAN İhracat ve İmalat Kazancından İstisna Olan Tutarlar Düşüldükten Sonra Kalan Tutarı","İhracat Faaliyetinden Elde Edilen  Kazançtan İstisna Olan Kısım Düşüldükten Sonra Bulunan Tutarı","Üretim  Faaliyetinden Elde Edilen  Kazançtan İstisna Olan Kısım Düşüldükten Sonra Bulunan Tutarı","Diğer Faaliyetinden Elde Edilen  Kazanç"]
[null,null,{"$f":"SUM(D73:F73)","v":0},{"$f":"IF(D59-C66<=0,0,D59-C66)","v":0},{"$f":"IF(E59-C67<=0,0,E59-C67)","v":0},{"$f":"F59","v":0}]
[null,"MATRAH DAĞITIM PAYLARI",null,{"$f":"IFERROR(IF(D73/C73>1,1,IF(D73/C73<=0,0,IF(D73/C73<1,D73/C73))),0)","v":0},{"$f":"IFERROR(IF(E73/C73>1,1,IF(E73/C73<=0,0,IF(E73/C73<1,E73/C73))),0)","v":0},{"$f":"IFERROR(IF(F73/C73>1,1,IF(F73/C73<=0,0,IF(F73/C73<1,F73/C73))),0)","v":0}]
[null,"İHRACAT, İMALAT VE DİĞER FAALİYETLERDEN ELDE EDİLEN KAZANCIN TOPLAM TİCARİ KAZANÇ İÇİNDEKİ PAYLARI ",null,{"$f":"IFERROR(IF(AND(D73+E73>C73, F73<=0),1,(D73+E73)/C73),0)","v":0},null,{"$f":"IFERROR(IF(F73<=0,0,F73/C73),0)","v":0}]
[null,"NEGATİF VE % 100 DEN BÜYÜKLÜK KONTROLÜ SONRASINDAKİ PAYLARI",null,{"$f":"IFERROR(IF(D75<=0,0,IF(D75>1,1,D75)),0)","v":0},null,{"$f":"IFERROR(IF(F75<=0,0,IF(F75>1,1,F75)),0)","v":0}]
[]
[null,"SAFİ KURUM KAZANCI \n(KURUMLAR VERGİSİ MATRAHI)",{"$f":"C59+C63-C64-C65-C69-C70","v":0},{"$f":"IF(C78<0, \"ZARAR\",\"KAR\")","v":"KAR"}]
[]
[null,"2022 YILI 3. DÖNEM İNDİRİMLİ KURUMLAR VERGİSİ HESAPLAMA TABLOSU"]
[null,"Vergi İndirim Oranı (VİO)"]
[null,"KV MATRAHI (Safi Kurum Kazancı)",{"$f":"C78","v":0}]
[null,"32/A  Uygulanacak K.V. Matrahı "]
[null,"32/A UYGULANMAYACAK K.V.  Matrahı",{"$f":"C82-C83","v":0}]
[null,"MATRAH TOPLAMI",{"$f":"C83+C84","v":0}]
[]
[null,"SAFİ KURUM KAZANCININ  KV VERGİ ORANLARI İTİBARİYLE DAĞILIMI ","TOPLAM SAFİ KAZANÇ","İhracat Kazancı Payı","Üretim Kazancı Payı","Diğer Faaliyet Kazancı Payı"]
[]
[null,null,{"$f":"IF(C82<=0,0,IF(SUM(D89:F89)<C78,C78,MIN(SUM(D89:F89),C78)))","v":0},{"$f":"IF((D73+E73)>C73,MIN(C73,(D73+E73),C78),IF(C78<=0,0,MIN((E73+D73),(C78-F89))))","v":0},null,{"$f":"IF(C78*F76<=0,0,MIN((C78*F76),F73))","v":0}]
[null,"SAFİ KURUM KAZANCININ DAĞILIMI ORANSAL +",{"$f":"C89","v":0},{"$f":"IFERROR(IF(D73/C73>1,1,IF(D73/C73<=0,0,D73/C73)),0)","v":0},{"$f":"IFERROR(IF(E73/C73>1,1,IF(E73/C73<=0,0,E73/C73)),0)","v":0},{"$f":"IFERROR(IF(F73/C73>1,1,IF(F73/C73<=0,0,F73/C73)),0)","v":0}]
[null,"SAFİ KURUM KAZANCININ DAĞILIMI TUTARSAL",{"$f":"C90","v":0},{"$f":"MIN(IF(D90*C91<=0,0,MIN((D90*C91),D73)),C91)","v":0},{"$f":"MIN(IF(E90*C91<=0,0,MIN((E90*C91),E73)),C91)","v":0},{"$f":"MIN(IF(C91-(D91+E91)<=0,0,C91-(D91+E91)),C91)","v":0}]
[null,"SAFİ KURUM KAZANCI DAĞILIMI",{"$f":"C91","v":0},{"$f":"IFERROR(IF(D91/C91>=1,1,D91/C91),0)","v":0},{"$f":"IFERROR(IF(E91/C91>=1,1,E91/C91),0)","v":0},{"$f":"IFERROR(IF(F91/C91>=1,1,F91/C91),0)","v":0}]
[null,"1 PUAN VE 32/A İNDİRİMİ OLMASAYDI HESAPLANAN KV TUTARI",{"$f":"C92*23/100","v":0},{"$f":"D91*23/100","v":0},{"$f":"E91*23/100","v":0},{"$f":"F91*23/100","v":0}]
[null,"32/ A UYGULANAN MATRAH",{"$f":"C83","v":0},{"$f":"D106","v":0},{"$f":"D105","v":0},{"$f":"D104","v":0}]
[null,"32/A UYGULANACAK MATRAH ÜZERİNDEN ÖDENECEK KV TUTARI",{"$f":"J107","v":0},{"$f":"J106","v":0},{"$f":"J105","v":0},{"$f":"J104","v":0}]
[null,"32/A UYGULANMAYAN MATRAH",{"$f":"IF(C84<=0,0,C84)","v":0},{"$f":"D111","v":0},{"$f":"D110","v":0},{"$f":"D109","v":0}]
[null,"32/A UYGULANMAYAN MATRAH ÜZERİNDEN ÖDENECEK KV TUTARI",{"$f":"L109","v":0},{"$f":"J111","v":0},{"$f":"J110","v":0},{"$f":"J109","v":0}]
[null,"TOPLAM ÖDENECEK KV",{"$f":"C95+C97","v":0},{"$f":"J111+J106","v":0},{"$f":"J110+J105","v":0},{"$f":"J109+J104","v":0}]
[null,"TOPLAM AVANTAJ  (YARARLANILAN 1 PUAN İNDİRİMİ + 32/A İNDİRİMİ TUTARI )",{"$f":"C93-C98","v":0},{"$f":"D100+D101","v":0},{"$f":"E100+E101","v":0},0]
[null,"YARARLANILAN 1 PUAN İNDİRİMİ TUTARI",{"$f":"F113","v":0},{"$f":"F111+F106","v":0},{"$f":"F110+F105","v":0},{"$f":"F109+F104","v":0}]
[null,"YARLANILAN 32/A İNDİRİMİ TUTARI",{"$f":"K107","v":0},{"$f":"K106","v":0},{"$f":"K105","v":0},{"$f":"K104","v":0}]
[]
[null,"32/A UYGULANABİLECEK MATRAH",{"$f":"C83","v":0},"KV MATRAHI","1 PUAN İNDİRİM OLMASAYDI HESAPLANAN KV TUTARI","1 Puan İndirim Tutarı","1 Puan İndirim Sonrasında Hesaplanan KV Tutarı","32/A İndirimi Olmasaydı Ödenecek KV Tutarı","1 Puan İndirim ve 32/A VİO Uygulandıktan Sonra Tatbik Edilecek KV Oranı","1 Puan İndirim ve 32/A İndirimi Uygulandıktan Sonra Ödenecek  KV Tutarı","Yararlanılan Yatırıma Katkı Tutarı\n(32/A İnd. KV Nedeniyle Vazgeçilen Vergi Tutarı)","Ödenecek KV Tutarı"]
[null,"%23 LÜK ORANA TABİ KISIM (DİĞER FAALİYETLER)",{"$f":"F92","v":0},{"$f":"C103*C104","v":0},{"$f":"D104*23/100","v":0},0,{"$f":"E104-F104","v":0},{"$f":"G104","v":0},{"$f":"(0.23)-((0.23)*C81)","v":0.23},{"$f":"I104*D104","v":0},{"$f":"G104-J104","v":0},{"$f":"J107","v":0}]
[null,"%22 LİK ORANA TABİ KISIM  (İMALAT)",{"$f":"E92","v":0},{"$f":"C103*C105","v":0},{"$f":"D105*23/100","v":0},{"$f":"E105/23","v":0},{"$f":"E105-F105","v":0},{"$f":"G105","v":0},{"$f":"(0.23-0.01)-((0.23-0.01)*C81)","v":0.22},{"$f":"I105*D105","v":0},{"$f":"G105-J105","v":0}]
[null,"%22 LİK ORANA TABİ KISIM  ( İHRACAT)",{"$f":"D92","v":0},{"$f":"C103*C106","v":0},{"$f":"D106*23/100","v":0},{"$f":"E106/23","v":0},{"$f":"E106-F106","v":0},0,{"$f":"(0.23-0.01)-((0.23-0.01)*C81)","v":0.22},0,{"$f":"G106-J106","v":0}]
[null,"TOPLAM",{"$f":"SUM(C104:C106)","v":0},0,0,{"$f":"SUM(F104:F106)","v":0},{"$f":"SUM(G104:G106)","v":0},{"$f":"SUM(H104:H106)","v":0},null,0,0]
[null,"32/A UYGULANAMAYACAK MATRAH",{"$f":"IF(C84<=0,0,C84)","v":0},"KV MATRAHI","1 PUAN İNDİRİM OLMASAYDI HESAPLANAN KV TUTARI","1 Puan İndirim Tutarı","1 Puan İndirim Sonrasında Hesaplanan KV Tutarı","32/A İNDİRİMİ UYGULANMAZ",null,"1 Puan İndirim ve 32/A İndirimi Uygulandıktan Sonra Ödenecek  KV Tutarı","Yararlanılan Yatırıma Katkı Tutarı\n(32/A İnd. KV Nedeniyle Vazgeçilen Vergi Tutarı)","Ödenecek KV Tutarı"]
[null,"%23 LÜK ORANA TABİ KISIM (DİĞER FAALİYETLER)",{"$f":"F92","v":0},{"$f":"C108*C109","v":0},{"$f":"D109*23/100","v":0},0,{"$f":"E109-F109","v":0},null,null,{"$f":"G109","v":0},{"$f":"G109-J109","v":0},{"$f":"J112","v":0}]
[null,"%22 LİK ORANA TABİ KISIM  (İMALAT)",{"$f":"E92","v":0},{"$f":"C110*C108","v":0},{"$f":"D110*23/100","v":0},{"$f":"E110/23","v":0},{"$f":"E110-F110","v":0},null,null,{"$f":"G110","v":0},{"$f":"G110-J110","v":0}]
[null,"%22 LİK ORANA TABİ KISIM  ( İHRACAT)",{"$f":"D92","v":0},{"$f":"C111*C108","v":0},{"$f":"D111*23/100","v":0},{"$f":"E111/23","v":0},0,null,null,0,0]
[null,"TOPLAM",{"$f":"SUM(C109:C111)","v":0},{"$f":"SUM(D109:D111)","v":0},0,{"$f":"SUM(F109:F111)","v":0},{"$f":"SUM(G109:G111)","v":0},null,null,0,0]
[null,"TOPLAM KV MATRAHI VE ÖDENMESİ GEREKEN KV ",{"$f":"C103+C108","v":0},{"$f":"D107+D112","v":0},{"$f":"E107+E112","v":0},{"$f":"F107+F112","v":0},{"$f":"G107+G112","v":0},null,null,{"$f":"J107+J112","v":0},{"$f":"K112+K107","v":0},{"$f":"L104+L109","v":0}]
[]
[null,"GEÇİCİ VERGİ BEYANNMESİNDE MATRAH BİLDİRİMİ BÖLÜMÜNDE DOLDURULACAK KISIMLAR VE TUTARLARI"]
[null,"32 A Madde Kapsamında İndirimli Kurumlar Vergisine (Geçici Vergiye) Tabi Matrah",{"$f":"C103","v":0},{"$f":"E107","v":0},"1 Puan Olmasaydı Hesaplan KV Tutarı"]
[null,null,null,{"$f":"G107","v":0},"1 Puan İndirim Sonrasında Ödenecek KV Tutarı\n (32 A olmasaydı hesaplanacak Vergi)"]
[null,null,null,{"$f":"K107","v":0},"32/A İndirimi ile Vazgeçilen Vergi"]
[null,"32 A Madde Kapsamında İndirimli Kurumlar Vergisi(Geçici Vergi) Oranı",{"$f":"IFERROR(D119/C116,0)","v":0},{"$f":"L104","v":0},"32/A ya Tabi Matrah Üzerinden Ödenecek KV"]
[null,"32/8 Madde Kapsamında İndirimli Kurumlar Vergisine (Geçici Vergiye) Tabi Matrah  (Üretim)",{"$f":"D110","v":0},{"$f":"E110","v":0},"1 Puan Olmasaydı Hesaplan KV Tutarı"]
[null,null,null,{"$f":"F110","v":0},"1 Puan İndirimin Vergi Etkisi "]
[null,"32/8 Madde Kapsamında İndirimli Kurumlar Vergisi (Geçici Vergi) Oranı",{"$f":"IFERROR(D122/C120,0)","v":0},{"$f":"G110","v":0},"1 Puan İndirim Sonrasında Ödenecek KV Tutarı (Üretim)\n"]
[null,"32/7 Madde Kapsamında İndirimli Kurumlar Vergisine (Geçici Vergiye) Tabi Matrah  (İhracat)",{"$f":"D111","v":0},{"$f":"E111","v":0},"1 Puan Olmasaydı Hesaplan KV Tutarı"]
[null,null,null,{"$f":"F111","v":0},"1 Puan İndirimin Vergi Etkisi "]
[null,"32/7 Madde Kapsamında İndirimli Kurumlar Vergisi (Geçici Vergi) Oranı",{"$f":"IFERROR(D125/C123,0)","v":0},{"$f":"G111","v":0},"1 Puan İndirim Sonrasında Ödenecek KV Tutarı (İhracat)\n"]
[null,"Genel Orana Tabi Matrah (Diğer)",{"$f":"D109","v":0},{"$f":"J109","v":0},"Diğer Faalilyetlerden Elde Edilen Kazanç"]
[null,null,{"$f":"IFERROR(D126/C126,0)","v":0}]
[null,"MATRAHLAR TOPLAMI",{"$f":"C116+C120+C123+C126","v":0},{"$f":"D119+D122+D125+D126","v":0}]

{"sheet":"BİST ","index":1,"n_rows":128,"n_cols":12,"rows_kept":128,"cut":false,"hidden":false,"merged":[[74,1,74,2],[74,3,74,4],[75,1,75,2],[75,3,75,4],[79,1,79,3],[59,1,59,2],[60,1,60,2],[71,1,72,1],[1,1,2,1],[73,1,73,2],[116,1,117,2],[86,5,87,5],[88,3,88,4],[103,11,106,11],[107,7,112,8],[108,11,111,11],[86,1,88,1],[86,2,87,2],[86,3,87,3],[86,4,87,4],[114,1,114,4]]}
[]
[null,"FAALİYET TÜRLERİ İTİBARİYLE HASILATLAR VE TOPLAM İÇİNDEKİ ORANLARI",{"$f":"IFERROR(C4/C4,0)","v":0},{"$f":"IFERROR(D4/C4,0)","v":0},{"$f":"IFERROR(E4/C4,0)","v":0},{"$f":"IFERROR(F4/C4,0)","v":0}]
[null,null,"Toplam Hasılat","İhracat faaliyeti","İmalat faaliyeti","Diğer faaliyetler"]
[null,"A-BRÜT SATIŞLAR (60)",{"$f":"D4+E4+F4","v":0},{"$f":"SUM(D5:D7)","v":0},{"$f":"SUM(E5:E7)","v":0},0]
[null,"1-Yurtiçi Satışlar (600)",{"$f":"D5+E5+F5","v":0}]
[null,"2-Yurtdışı Satışlar (601)",{"$f":"D6+E6+F6","v":0}]
[null,"3-Diğer Gelirler (602)",{"$f":"D7+E7+F7","v":0}]
[null,"B-SATIŞ İNDİRİMLERİ(-) (61)",{"$f":"SUM(C9:C11)","v":0},{"$f":"SUM(D9:D11)","v":0},{"$f":"SUM(E9:E11)","v":0},{"$f":"SUM(F9:F11)","v":0}]
[null,"1-Satıştan İadeler (-) (610)",{"$f":"SUM(D9:F9)","v":0}]
[null,"2- Satış İskontoları (-) (611)",{"$f":"SUM(D10:F10)","v":0}]
[null,"3-Diğer İndirimler (-) (612)",0]
[null,"C-NET SATIŞLAR",{"$f":"C4-C8","v":0},{"$f":"D4-D8","v":0},0,0]
[null,"D-SATIŞLARIN MALİYETİ (-) (62)",{"$f":"SUM(C14:C17)","v":0},{"$f":"SUM(D14:D17)","v":0},{"$f":"SUM(E14:E17)","v":0},{"$f":"SUM(F14:F17)","v":0}]
[null,"1-Satılan Mamuller Maliyeti ( 620)",{"$f":"SUM(D14:F14)","v":0}]
[null,"2-Satılan Ticari Mal Maliyeti (621)",{"$f":"SUM(D15:F15)","v":0}]
[null,"3-Satılan Hizmet Maliyeti (622)",0]
[null,"4-Diğer Satışların Maliyeti (623)",0]
[null,"BRÜT SATIŞ KARI / ZARARI",{"$f":"C12-C13","v":0},{"$f":"D12-D13","v":0},{"$f":"E12-E13","v":0},0]
[null,"E-FAALİYET GİDERLERİ (-) (63)",{"$f":"SUM(C20:C24)","v":0},{"$f":"SUM(D20:D24)","v":0},{"$f":"SUM(E20:E24)","v":0},{"$f":"SUM(F20:F24)","v":0}]
[null,"1-Araştırma ve Geliştirme Giderleri(-) (630)",{"$f":"SUM(D20:F20)","v":0}]
[null,"2-Pazarlama, Satış ve Dağıtım Giderleri(-) (631)",{"$f":"SUM(D21:F21)","v":0}]
[null,"3-Genel Yönetim Giderleri(-) (632)",{"$f":"SUM(D22:F22)","v":0}]
[null,"MÜŞTEREK GENEL GİDERLER (DAĞITIM-HASILAT PAYINA GÖRE)",null,{"$f":"C23*D2","v":0},{"$f":"C23*E2","v":0},{"$f":"C23*F2","v":0}]
[null,"MÜŞTEREK GENEL GİDER GİBİ DAĞITIMA TABİ TUTULACAK AMORTİSMAN GİDERLERİ  (DAĞITIM-HASILAT PAYINA GÖRE)",null,{"$f":"C24*D2","v":0},{"$f":"C24*E2","v":0},{"$f":"C24*F2","v":0}]
[null,"FAALİYET KARI / ZARARI ",{"$f":"C18-C19","v":0},{"$f":"D18-D19","v":0},{"$f":"E18-E19","v":0},{"$f":"F18-F19","v":0}]
[null,"F-DİĞER FAALİYETLERDEN OLAĞAN GELİR VE KARLAR (64)",{"$f":"SUM(C27:C35)","v":0},{"$f":"SUM(D27:D35)","v":0},{"$f":"SUM(E27:E35)","v":0},{"$f":"SUM(F27:F35)","v":0}]
[null,"         1- İŞTİRAKLERDEN TEMETTÜ GELİRLERİ (640)",{"$f":"SUM(D27:F27)","v":0}]
[null,"         2- BAĞLI ORTAKLIKLARDAN TEMETTÜ GELİRLERİ (641)",{"$f":"SUM(D28:F28)","v":0}]
[null,"         3- FAİZ GELİRLERİ (642) (ihracat ve imalat kaynaklı alacağın tahsiline kadar olan süreçte oluşan)",0]
[null,"         4- KOMİSYON GELİRLERİ (643)",0]
[null,"         5- KONUSU OLMAYAN KARŞILIKLAR (644)",0]
[null,"         6- MENKUL KIYMET SATIŞ KARLARI (645)",0]
[null,"         7- KAMBİYO KARLARI (646) (ihracat ve imalat kaynaklı alacağın tahsiline kadar olan süreçte oluşan)",0]
[null,"         8- REESKONT FAİZ GELİRLERİ (647)",0]
[null,"         9- FAALİYETLE İLGİLİ DİĞER GELİR VE KARLAR (649)",0]
[null,"ARA TOPLAM",{"$f":"C25+C26","v":0},{"$f":"D25+D26","v":0},{"$f":"E25+E26","v":0},{"$f":"F25+F26","v":0}]
[null,"G-DİĞER FAALİYETLERDEN OLAĞAN GİDER VE ZARARLAR(-) (65)",{"$f":"SUM(C38:C43)","v":0},{"$f":"SUM(D38:D43)","v":0},{"$f":"SUM(E38:E43)","v":0},{"$f":"SUM(F38:F43)","v":0}]
[null,"         1- KOMİSYON GİDERLERİ (653)",{"$f":"SUM(D38:F38)","v":0}]
[null,"         2- KARŞILIK GİDERLERİ (654)",{"$f":"SUM(D39:F39)","v":0}]
[null,"         3- MENKUL KIYMET SATIŞ ZARARLARI (655)",0]
[null,"         4- KAMBİYO ZARARLARI (656) (ihracat ve imalat kaynaklı alacağın tahsiline kadar olan süreçte oluşan)",0]
[null,"         5- REESKONT FAİZ GİDERLERİ (657)",0]
[null,"         6- DİĞER OLAĞAN GİDER VE ZARARLAR (659)",{"$f":"SUM(D43:F43)","v":0}]
[null,"ARA TOPLAM",{"$f":"C36-C37","v":0},{"$f":"D36-D37","v":0},{"$f":"E36-E37","v":0},0]
[null,"H-FİNANSMAN GİDERLERİ(-) (66)",{"$f":"SUM(C46:C49)","v":0},{"$f":"SUM(D46:D49)","v":0},{"$f":"SUM(E46:E49)","v":0},{"$f":"SUM(F46:F49)","v":0}]
[null,"         1- KISA VADELİ BORÇLANMA GİDERLERİ (-)",{"$f":"SUM(D46:F46)","v":0}]
[null,"         2- UZUN VADELİ BORÇLANMA GİDERLERİ (-)",{"$f":"SUM(D47:F47)","v":0}]
[null,"         1- KISA VADELİ BORÇLANMA GİDERLERİ (-) (DAĞITIM)",null,{"$f":"C48*D2","v":0},{"$f":"C48*E2","v":0},{"$f":"C48*F2","v":0}]
[null,"         2- UZUN VADELİ BORÇLANMA GİDERLERİ (-) (DAĞITIM)",null,{"$f":"C49*D2","v":0},{"$f":"C49*E2","v":0},{"$f":"C49*F2","v":0}]
[null,"ARA TOPLAM",{"$f":"C44-C45","v":0},{"$f":"D44-D45","v":0},{"$f":"E44-E45","v":0},{"$f":"F44-F45","v":0}]
[null,"I-OLAĞANDIŞI GELİR VE KÂRLAR (67)",{"$f":"SUM(D51:F51)","v":0},{"$f":"SUM(D52:D53)","v":0},{"$f":"SUM(E52:E53)","v":0},{"$f":"SUM(F52:F53)","v":0}]
[null,"1- ÖNCEKİ DÖNEM GELİR VE KARLARI (671)",{"$f":"SUM(D52:F52)","v":0}]
[null,"2-DİĞER OLAĞAN DIŞI GELİR VE KARLAR (679)",{"$f":"SUM(D53:F53)","v":0}]
[null,"ARA TOPLAM",{"$f":"SUM(D54:F54)","v":0},{"$f":"D50-D51","v":0},{"$f":"E50-E51","v":0},0]
[null,"J-OLAĞANDIŞI GİDER VE ZARARLAR(-) (68)",{"$f":"SUM(C56:C58)","v":0},{"$f":"SUM(D56:D58)","v":0},{"$f":"SUM(E56:E58)","v":0},{"$f":"SUM(F56:F58)","v":0}]
[null,"1-Çalışmayan Kısım Gider ve Zararları(-) (680)",{"$f":"SUM(D56:F56)","v":0}]
[null,"2-Önceki Dönem Gider ve Zararları(-) (681)",{"$f":"SUM(D57:F57)","v":0}]
[null,"3-Diğer Olağan Dışı Gider ve Zararlar(-) (689)",0]
[null,"DÖNEM KÂRI VEYA ZARARI \n(TİCARİ BİLANÇO KARI ZARARI )",{"$f":"C54-C55","v":0},{"$f":"D54-D55","v":0},{"$f":"E54-E55","v":0},0]
[null,"İHRACAT, İMALAT VE DİĞER FAALİYETLERDEN ELDE EDİLEN KAZANCIN TOPLAM TİCARİ KAZANÇ İÇİNDEKİ PAYLARI \n\n(İHRACAT VE İMALAT FAALİYETİ KAZANCININ TOPLAMININ TİCARİ BİLANÇO KARINDAN FAZLA OLDUĞU DURUMDA BU FAALİYETLERİN TOPLAM İÇİNDEKİ PAYI % 100 OLARAK KABUL EDİLMİŞ VE İHRACAT VE İMALATIN KAZANCINA GÖRE PAYLARI HESAPLANMIŞTIR.",null,{"$f":"IFERROR(IF(D59+E59>C59,(D59/(D59+E59)),D59/C59),0)","v":0},{"$f":"IFERROR(IF(D59+E59>C59,(E59/(D59+E59)),E59/C59),0)","v":0},{"$f":"IF(F59<=0,0,F59/C59)","v":0}]
[null,"NEGATİF VE % 100 DEN BÜYÜKLÜK KONTROLÜ SONRASINDAKİ PAYLARI",null,{"$f":"IF(D60<=0,0,IF(D60>1,1,D60))","v":0},{"$f":"IF(E60<=0,0,IF(E60>1,1,E60))","v":0},{"$f":"IF(F60<=0,0,IF(F60>1,1,F60))","v":0}]
[]
[null,"KKEG +"]
[null," KABUL EDİLMEYEN GELİRLER -"]
[null,"ZARAR OLSA DAHİ İNDİRİLECEK İSTİSNALAR -",{"$f":"SUM(C66:C68)","v":0}]
[null,"Hizmet İhracatı Faaliyetinden (KVK 10-1/ğ) Elde Edilen Kazançlardan İstisna Edilenlerin Toplamı"]
[null,"İmalat Faaliyetinden Elde Edilen Kazançlardan İstisna Edilenlerin Toplamı"]
[null,"Diğer Faaliyetlerden Elde Edilen Kazançlardan İstisna Edilenlerin Toplamı"]
[null,"GEÇMİŞ YIL ZARARLARI -"]
[null,"İNDİRİMLER -",null,"AZAMİ YAZILABİLECEK İNDİRİMLER TUTARI",{"$f":"C59+C63-C64-C65-C69","v":0}]
[]
[null,"1 PUAN İNDİRİM UYGULANACAK TUTARIN HESABINDA İSTİSNA KAZANÇLAR DÜŞÜLDÜKTEN SONRA BULUNAN TİCARİ KAZANÇ TUTARI İLE  İHRACAT,İMALAT VE DİĞER KAZANÇLARIN TUTARI","TİCARİ KAZANÇ TAN İhracat ve İmalat Kazancından İstisna Olan Tutarlar Düşüldükten Sonra Kalan Tutarı","İhracat Faaliyetinden Elde Edilen  Kazançtan İstisna Olan Kısım Düşüldükten Sonra Bulunan Tutarı","Üretim  Faaliyetinden Elde Edilen  Kazançtan İstisna Olan Kısım Düşüldükten Sonra Bulunan Tutarı","Diğer Faaliyetinden Elde Edilen  Kazanç"]
[null,null,{"$f":"SUM(D73:F73)","v":0},{"$f":"IF(D59-C66<=0,0,D59-C66)","v":0},{"$f":"IF(E59-C67<=0,0,E59-C67)","v":0},{"$f":"F59","v":0}]
[null,"MATRAH DAĞITIM PAYLARI",null,{"$f":"IFERROR(IF(D73/C73>1,1,IF(D73/C73<=0,0,IF(D73/C73<1,D73/C73))),0)","v":0},{"$f":"IFERROR(IF(E73/C73>1,1,IF(E73/C73<=0,0,IF(E73/C73<1,E73/C73))),0)","v":0},{"$f":"IFERROR(IF(F73/C73>1,1,IF(F73/C73<=0,0,IF(F73/C73<1,F73/C73))),0)","v":0}]
[null,"İHRACAT, İMALAT VE DİĞER FAALİYETLERDEN ELDE EDİLEN KAZANCIN TOPLAM TİCARİ KAZANÇ İÇİNDEKİ PAYLARI ",null,{"$f":"IFERROR(IF(AND(D73+E73>C73, F73<=0),1,(D73+E73)/C73),0)","v":0},null,{"$f":"IFERROR(IF(F73<=0,0,F73/C73),0)","v":0}]
[null,"NEGATİF VE % 100 DEN BÜYÜKLÜK KONTROLÜ SONRASINDAKİ PAYLARI",null,{"$f":"IFERROR(IF(D75<=0,0,IF(D75>1,1,D75)),0)","v":0},null,{"$f":"IFERROR(IF(F75<=0,0,IF(F75>1,1,F75)),0)","v":0}]
[]
[null,"SAFİ KURUM KAZANCI \n(KURUMLAR VERGİSİ MATRAHI)",{"$f":"C59+C63-C64-C65-C69-C70","v":0},{"$f":"IF(C78<0, \"ZARAR\",\"KAR\")","v":"KAR"}]
[]
[null,"2022 YILI 3. DÖNEM İNDİRİMLİ KURUMLAR VERGİSİ HESAPLAMA TABLOSU"]
[null,"Vergi İndirim Oranı (VİO)"]
[null,"KV MATRAHI (Safi Kurum Kazancı)",{"$f":"C78","v":0}]
[null,"32/A  Uygulanacak K.V. Matrahı "]
[null,"32/A UYGULANMAYACAK K.V.  Matrahı",{"$f":"C82-C83","v":0}]
[null,"MATRAH TOPLAMI",{"$f":"C83+C84","v":0}]
[]
[null,"SAFİ KURUM KAZANCININ  KV VERGİ ORANLARI İTİBARİYLE DAĞILIMI ","TOPLAM SAFİ KAZANÇ","İhracat Kazancı Payı","Üretim Kazancı Payı","Diğer Faaliyet Kazancı Payı"]
[]
[null,null,{"$f":"IF(C82<=0,0,IF(SUM(D89:F89)<C78,C78,MIN(SUM(D89:F89),C78)))","v":0},{"$f":"IF((D73+E73)>C73,MIN(C73,(D73+E73),C78),IF(C78<=0,0,MIN((E73+D73),(C78-F89))))","v":0},null,{"$f":"IF(C78*F76<=0,0,MIN((C78*F76),F73))","v":0}]
[null,"SAFİ KURUM KAZANCININ DAĞILIMI ORANSAL +",{"$f":"C89","v":0},{"$f":"IFERROR(IF(D73/C73>1,1,IF(D73/C73<=0,0,D73/C73)),0)","v":0},{"$f":"IFERROR(IF(E73/C73>1,1,IF(E73/C73<=0,0,E73/C73)),0)","v":0},{"$f":"IFERROR(IF(F73/C73>1,1,IF(F73/C73<=0,0,F73/C73)),0)","v":0}]
[null,"SAFİ KURUM KAZANCININ DAĞILIMI TUTARSAL",{"$f":"C90","v":0},{"$f":"MIN(IF(D90*C91<=0,0,MIN((D90*C91),D73)),C91)","v":0},{"$f":"MIN(IF(E90*C91<=0,0,MIN((E90*C91),E73)),C91)","v":0},{"$f":"MIN(IF(C91-(D91+E91)<=0,0,C91-(D91+E91)),C91)","v":0}]
[null,"SAFİ KURUM KAZANCI DAĞILIMI",{"$f":"C91","v":0},{"$f":"IFERROR(IF(D91/C91>=1,1,D91/C91),0)","v":0},{"$f":"IFERROR(IF(E91/C91>=1,1,E91/C91),0)","v":0},{"$f":"IFERROR(IF(F91/C91>=1,1,F91/C91),0)","v":0}]
[null,"1 PUAN VE 32/A İNDİRİMİ OLMASAYDI HESAPLANAN KV TUTARI",{"$f":"C92*23/100","v":0},{"$f":"D91*23/100","v":0},{"$f":"E91*23/100","v":0},{"$f":"F91*23/100","v":0}]
[null,"32/ A UYGULANAN MATRAH",{"$f":"C83","v":0},{"$f":"D106","v":0},{"$f":"D105","v":0},{"$f":"D104","v":0}]
[null,"32/A UYGULANACAK MATRAH ÜZERİNDEN ÖDENECEK KV TUTARI",{"$f":"J107","v":0},{"$f":"J106","v":0},{"$f":"J105","v":0},{"$f":"J104","v":0}]
[null,"32/A UYGULANMAYAN MATRAH",{"$f":"IF(C84<=0,0,C84)","v":0},{"$f":"D111","v":0},{"$f":"D110","v":0},{"$f":"D109","v":0}]
[null,"32/A UYGULANMAYAN MATRAH ÜZERİNDEN ÖDENECEK KV TUTARI",{"$f":"L109","v":0},{"$f":"J111","v":0},{"$f":"J110","v":0},{"$f":"J109","v":0}]
[null,"TOPLAM ÖDENECEK KV",{"$f":"C95+C97","v":0},{"$f":"J111+J106","v":0},{"$f":"J110+J105","v":0},{"$f":"J109+J104","v":0}]
[null,"TOPLAM AVANTAJ  (YARARLANILAN 1 PUAN İNDİRİMİ + 32/A İNDİRİMİ TUTARI )",{"$f":"C93-C98","v":0},{"$f":"D100+D101","v":0},{"$f":"E100+E101","v":0},0]
[null,"YARARLANILAN 1 PUAN İNDİRİMİ TUTARI",{"$f":"F113","v":0},{"$f":"F111+F106","v":0},{"$f":"F110+F105","v":0},{"$f":"F109+F104","v":0}]
[null,"YARLANILAN 32/A İNDİRİMİ TUTARI",{"$f":"K107","v":0},{"$f":"K106","v":0},{"$f":"K105","v":0},{"$f":"K104","v":0}]
[]
[null,"32/A UYGULANABİLECEK MATRAH",{"$f":"C83","v":0},"KV MATRAHI","1 PUAN İNDİRİM OLMASAYDI HESAPLANAN KV TUTARI","1 Puan İndirim Tutarı","1 Puan İndirim Sonrasında Hesaplanan KV Tutarı","32/A İndirimi Olmasaydı Ödenecek KV Tutarı","1 Puan İndirim ve 32/A VİO Uygulandıktan Sonra Tatbik Edilecek KV Oranı","1 Puan İndirim ve 32/A İndirimi Uygulandıktan Sonra Ödenecek  KV Tutarı","Yararlanılan Yatırıma Katkı Tutarı\n(32/A İnd. KV Nedeniyle Vazgeçilen Vergi Tutarı)","Ödenecek KV Tutarı"]
[null,"%21 LiK ORANA TABİ KISIM (DİĞER FAALİYETLER)",{"$f":"F92","v":0},{"$f":"C103*C104","v":0},{"$f":"D104*21/100","v":0},0,{"$f":"E104-F104","v":0},{"$f":"G104","v":0},{"$f":"(0.21)-((0.21)*C81)","v":0.21},{"$f":"I104*D104","v":0},{"$f":"G104-J104","v":0},{"$f":"J107","v":0}]
[null,"%20 LİK ORANA TABİ KISIM  (İMALAT)",{"$f":"E92","v":0},{"$f":"C103*C105","v":0},{"$f":"D105*21/100","v":0},{"$f":"E105/21","v":0},{"$f":"E105-F105","v":0},{"$f":"G105","v":0},{"$f":"(0.21-0.01)-((0.21-0.01)*C81)","v":0.19999999999999998},{"$f":"I105*D105","v":0},{"$f":"G105-J105","v":0}]
[null,"%20 LİK ORANA TABİ KISIM  ( İHRACAT)",{"$f":"D92","v":0},{"$f":"C103*C106","v":0},0,{"$f":"E106/21","v":0},{"$f":"E106-F106","v":0},0,{"$f":"(0.21-0.01)-((0.21-0.01)*C81)","v":0.19999999999999998},0,{"$f":"G106-J106","v":0}]
[null,"TOPLAM",{"$f":"SUM(C104:C106)","v":0},0,{"$f":"SUM(E104:E106)","v":0},{"$f":"SUM(F104:F106)","v":0},{"$f":"SUM(G104:G106)","v":0},{"$f":"SUM(H104:H106)","v":0},null,{"$f":"SUM(J104:J106)","v":0},0]
[null,"32/A UYGULANAMAYACAK MATRAH",{"$f":"IF(C84<=0,0,C84)","v":0},"KV MATRAHI","1 PUAN İNDİRİM OLMASAYDI HESAPLANAN KV TUTARI","1 Puan İndirim Tutarı","1 Puan İndirim Sonrasında Hesaplanan KV Tutarı","32/A İNDİRİMİ UYGULANMAZ",null,"1 Puan İndirim ve 32/A İndirimi Uygulandıktan Sonra Ödenecek  KV Tutarı","Yararlanılan Yatırıma Katkı Tutarı\n(32/A İnd. KV Nedeniyle Vazgeçilen Vergi Tutarı)","Ödenecek KV Tutarı"]
[null,"%21 LiK ORANA TABİ KISIM (DİĞER FAALİYETLER)",{"$f":"F92","v":0},{"$f":"C108*C109","v":0},{"$f":"D109*21/100","v":0},0,{"$f":"E109-F109","v":0},null,null,{"$f":"G109","v":0},{"$f":"G109-J109","v":0},{"$f":"J112","v":0}]
[null,"%20 LİK ORANA TABİ KISIM  (İMALAT)",{"$f":"E92","v":0},{"$f":"C110*C108","v":0},{"$f":"D110*21/100","v":0},{"$f":"E110/21","v":0},{"$f":"E110-F110","v":0},null,null,{"$f":"G110","v":0},{"$f":"G110-J110","v":0}]
[null,"%20 LİK ORANA TABİ KISIM  ( İHRACAT)",{"$f":"D92","v":0},{"$f":"C111*C108","v":0},{"$f":"D111*21/100","v":0},{"$f":"E111/21","v":0},0,null,null,{"$f":"G111","v":0},0]
[null,"TOPLAM",{"$f":"SUM(C109:C111)","v":0},{"$f":"SUM(D109:D111)","v":0},0,{"$f":"SUM(F109:F111)","v":0},{"$f":"SUM(G109:G111)","v":0},null,null,{"$f":"G112","v":0},{"$f":"H112","v":0}]
[null,"TOPLAM KV MATRAHI VE ÖDENMESİ GEREKEN KV ",{"$f":"C103+C108","v":0},{"$f":"D107+D112","v":0},{"$f":"E107+E112","v":0},{"$f":"F107+F112","v":0},{"$f":"G107+G112","v":0},null,null,{"$f":"J107+J112","v":0},{"$f":"K112+K107","v":0},{"$f":"L104+L109","v":0}]
[]
[null,"GEÇİCİ VERGİ BEYANNMESİNDE MATRAH BİLDİRİMİ BÖLÜMÜNDE DOLDURULACAK KISIMLAR VE TUTARLARI"]
[null,"32 A Madde Kapsamında İndirimli Kurumlar Vergisine (Geçici Vergiye) Tabi Matrah",{"$f":"C103","v":0},{"$f":"E107","v":0},"1 Puan Olmasaydı Hesaplan KV Tutarı"]
[null,null,null,{"$f":"G107","v":0},"1 Puan İndirim Sonrasında Ödenecek KV Tutarı\n (32 A olmasaydı hesaplanacak Vergi)"]
[null,null,null,{"$f":"K107","v":0},"32/A İndirimi ile Vazgeçilen Vergi"]
[null,"32 A Madde Kapsamında İndirimli Kurumlar Vergisi(Geçici Vergi) Oranı",{"$f":"IFERROR(D119/C116,0)","v":0},{"$f":"L104","v":0},"32/A ya Tabi Matrah Üzerinden Ödenecek KV"]
[null,"32/7 Madde Kapsamında İndirimli Kurumlar Vergisine (Geçici Vergiye) Tabi Matrah  (Üretim)",{"$f":"D110","v":0},{"$f":"E110","v":0},"1 Puan Olmasaydı Hesaplan KV Tutarı"]
[null,null,null,{"$f":"F110","v":0},"1 Puan İndirimin Vergi Etkisi "]
[null,"32/7 Madde Kapsamında İndirimli Kurumlar Vergisi (Geçici Vergi) Oranı",{"$f":"IFERROR(D122/C120,0)","v":0},{"$f":"G110","v":0},"1 Puan İndirim Sonrasında Ödenecek KV Tutarı (Üretim)\n"]
[null,"32/8 Madde Kapsamında İndirimli Kurumlar Vergisine (Geçici Vergiye) Tabi Matrah  (İhracat)",{"$f":"D111","v":0},{"$f":"E111","v":0},"1 Puan Olmasaydı Hesaplan KV Tutarı"]
[null,null,null,{"$f":"F111","v":0},"1 Puan İndirimin Vergi Etkisi "]
[null,"32/8 Madde Kapsamında İndirimli Kurumlar Vergisi (Geçici Vergi) Oranı",{"$f":"IFERROR(D125/C123,0)","v":0},{"$f":"G111","v":0},"1 Puan İndirim Sonrasında Ödenecek KV Tutarı (İhracat)\n"]
[null,"Genel Orana Tabi Matrah (Diğer)",{"$f":"D109","v":0},{"$f":"J109","v":0},"Diğer Faalilyetlerden Elde Edilen Kazanç"]
[null,null,{"$f":"IFERROR(D126/C126,0)","v":0}]
[null,"MATRAHLAR TOPLAMI",{"$f":"C116+C120+C123+C126","v":0},{"$f":"D119+D122+D125+D126","v":0}]